fUST/lending_fUST_20250602
["ID","MTS","AMOUNT","RATE_DAILY","PERIOD"]
[363635248,1748794241584,-430.0,0.00018903,2]
[363635249,1748794241594,-430.0,0.00018904,2]
[363635250,1748794241604,-430.0,0.00018904,2]
[363635251,1748794241614,-578.72,0.00018904,2]
[363635252,1748794241623,-711.65,0.00018904,2]
[363635253,1748794241633,-430.0,0.00018904,2]
[363635254,1748794241642,-430.0,0.00018904,2]
[363635255,1748794241652,-430.0,0.00018904,2]
[363635256,1748794241662,-752.45,0.00018904,2]
[363635257,1748794241675,-430.0,0.00018904,2]
[363635258,1748794241685,-660.87,0.00018904,2]
[363635259,1748794241695,-1126.12,0.00018904,2]
[363635260,1748794241705,-430.0,0.00018904,2]
[363635261,1748794241715,-2543.1327274,0.00018934,2]
[363635262,1748794241725,-1500.0,0.0001906,2]
[363635263,1748794241735,-2543.1327274,0.00019141,2]
[363635264,1748794241745,-430.0,0.00019177,2]
[363635265,1748794241755,-430.0,0.00019177,2]
[363635266,1748794241765,-430.0,0.00019177,2]
[363635267,1748794241776,-1226.51,0.00019177,2]
[363635268,1748794241786,-430.0,0.00019177,2]
[363635269,1748794241796,-430.0,0.00019177,2]
[363635270,1748794241806,-1028.55,0.00019177,2]
[363635271,1748794241816,-430.0,0.00019177,2]
[363635272,1748794241828,-449.49,0.00019177,2]
[363635273,1748794241837,-430.0,0.00019177,2]
[363635274,1748794241847,-430.0,0.00019178,2]
[363635275,1748794241858,-430.0,0.00019178,2]
[363635276,1748794241868,-430.0,0.00019178,2]
[363635277,1748794241878,-430.0,0.00019178,2]
[363635278,1748794241887,-430.0,0.00019178,2]
[363635279,1748794241898,-578.72,0.00019178,2]
[363635280,1748794241910,-711.65,0.00019178,2]
[363635281,1748794241922,-430.0,0.00019178,2]
[363635282,1748794241932,-430.0,0.00019178,2]
[363635283,1748794241943,-430.0,0.00019178,2]
[363635284,1748794241952,-752.45,0.00019178,2]
[363635285,1748794241964,-430.0,0.00019178,2]
[363635286,1748794241973,-660.87,0.00019178,2]
[363635287,1748794241984,-1126.12,0.00019178,2]
[363635288,1748794241993,-500.0,0.00019178,2]
[363635290,1748794242003,-430.0,0.00019178,2]
[363635291,1748794242012,-151.0,0.00019178,2]
[363635292,1748794242022,-173.899304,0.00019178,2]
[363635294,1748794242031,-156.587,0.00019233,2]
[363635295,1748794242041,-162.380719,0.00019288,2]
[363635296,1748794242050,-950.88,0.00019324,3]
[363635297,1748794242060,-168.3888056,0.00019343,2]
[363635298,1748794242070,-2543.1327274,0.00019348,2]
[363635299,1748794242079,-174.61919141,0.00019398,2]
[363635300,1748794242089,-1901.76,0.00019441,3]
[363635301,1748794242098,-396.2,0.00019441,3]
[363635302,1748794242108,-430.0,0.00019451,2]
[363635303,1748794242118,-430.0,0.00019451,2]
[363635304,1748794242128,-430.0,0.00019451,2]
[363635305,1748794242137,-1226.51,0.00019451,2]
[363635306,1748794242147,-430.0,0.00019451,2]
[363635307,1748794242157,-430.0,0.00019451,2]
[363635308,1748794242167,-1028.55,0.00019451,2]
[363635309,1748794242177,-430.0,0.00019451,2]
[363635310,1748794242187,-449.49,0.00019451,2]
[363635311,1748794242197,-430.0,0.00019451,2]
[363635312,1748794242206,-578.72,0.00019452,2]
[363635313,1748794242216,-711.65,0.00019452,2]
[363635314,1748794242226,-430.0,0.00019452,2]
[363635315,1748794242235,-430.0,0.00019452,2]
[363635316,1748794242245,-430.0,0.00019452,2]
[363635317,1748794242255,-752.45,0.00019452,2]
[363635318,1748794242265,-430.0,0.00019452,2]
[363635319,1748794242275,-660.87,0.00019452,2]
[363635320,1748794242285,-1126.12,0.00019452,2]
[363635321,1748794242294,-430.0,0.00019452,2]
[363635322,1748794242304,-181.08010149,0.00019453,2]
[363635323,1748794242314,-187.78006525,0.00019508,2]
[363635324,1748794242324,-2543.1327274,0.00019555,2]
[363635325,1748794242334,-178.59002559,0.00019556,2]
[363635326,1748794242344,-323.445,0.00019556,2]
[363635329,1748794242355,-194.72792766,0.00019563,2]
[363635331,1748794242364,-500.0,0.00019607,2]
[363635332,1748794242374,-201.93286099,0.00019618,2]
[363635333,1748794242384,-209.40437684,0.00019673,2]
[363635336,1748794242393,-430.0,0.00019725,2]
[363635338,1748794242403,-430.0,0.00019725,2]
[363635389,1748794242625,-430.0,0.00019725,2]
[363635391,1748794242635,-1226.51,0.00019725,2]
[363635393,1748794242645,-430.0,0.00019725,2]
[363635395,1748794242655,-430.0,0.00019725,2]
[363635398,1748794242667,-1028.55,0.00019725,2]
[363635401,1748794242678,-430.0,0.00019725,2]
[363635403,1748794242688,-449.49,0.00019725,2]
[363635405,1748794242697,-430.0,0.00019725,2]
[363635407,1748794242708,-578.72,0.00019726,2]
[363635409,1748794242717,-711.65,0.00019726,2]
[363635411,1748794242726,-430.0,0.00019726,2]
[363635413,1748794242736,-430.0,0.00019726,2]
[363635415,1748794242745,-430.0,0.00019726,2]
[363635417,1748794242755,-752.45,0.00019726,2]
[363635419,1748794242766,-430.0,0.00019726,2]
[363635421,1748794242776,-660.87,0.00019726,2]
[363635423,1748794242786,-1126.12,0.00019726,2]
[363635425,1748794242797,-430.0,0.00019726,2]
[363635427,1748794242807,-217.15233878,0.00019728,2]
[363635429,1748794242817,-1533.37483567,0.00019762,2]
[363635431,1748794242827,-2543.1327274,0.00019762,2]
[363635433,1748794242837,-282.30381527,0.00019783,2]
[363635435,1748794242847,-2543.1327274,0.00019969,2]
[363635437,1748794242857,-430.0,0.00019999,2]
[363635439,1748794242868,-430.0,0.00019999,2]
[363635441,1748794242877,-430.0,0.00019999,2]
[363635443,1748794242887,-1226.51,0.00019999,2]
[363635447,1748794242901,-430.0,0.00019999,2]
[363635449,1748794242914,-430.0,0.00019999,2]
[363635450,1748794242925,-1028.55,0.00019999,2]
[363635453,1748794242935,-430.0,0.00019999,2]
[363635455,1748794242948,-449.49,0.00019999,2]
[363635457,1748794242958,-430.0,0.00019999,2]
[363635459,1748794242969,-578.72,0.0002,2]
[363635462,1748794242979,-711.65,0.0002,2]
[363635465,1748794242989,-430.0,0.0002,2]
[363635468,1748794243000,-430.0,0.0002,2]
[363635471,1748794243009,-430.0,0.0002,2]
[363635474,1748794243019,-752.45,0.0002,2]
[363635477,1748794243028,-430.0,0.0002,2]
[363635480,1748794243039,-660.87,0.0002,2]
[363635482,1748794243049,-1126.12,0.0002,2]
[363635484,1748794243059,-430.0,0.0002,2]
[363635486,1748794243071,-500.0,0.00020067,2]
[363635488,1748794243081,-2543.1327274,0.00020176,2]
[363635490,1748794243091,-227.182621,0.00020187,2]
[363635492,1748794243101,-430.0,0.00020273,2]
[363635494,1748794243111,-578.72,0.00020273,2]
[363635496,1748794243121,-430.0,0.00020273,2]
[363635498,1748794243131,-711.65,0.00020273,2]
[363635500,1748794243140,-430.0,0.00020273,2]
[363635502,1748794243150,-1226.51,0.00020273,2]
[363635504,1748794243160,-430.0,0.00020273,2]
[363635506,1748794243175,-430.0,0.00020273,2]
[363635508,1748794243185,-430.0,0.00020273,2]
[363635510,1748794243197,-1028.55,0.00020273,2]
[363635512,1748794243207,-430.0,0.00020273,2]
[363635514,1748794243217,-430.0,0.00020273,2]
[363635516,1748794243227,-387.04,0.00020273,2]
[363635518,1748794243236,-449.49,0.00020273,2]
[363635520,1748794243246,-752.45,0.00020273,2]
[363635522,1748794243256,-430.0,0.00020273,2]
[363635524,1748794243266,-660.87,0.00020273,2]
[363635526,1748794243276,-1126.12,0.00020273,2]
[363635528,1748794243285,-430.0,0.00020273,2]
[363635530,1748794243295,-430.0,0.00020273,2]
[363635532,1748794243304,-2543.1327274,0.00020383,3]
[363635534,1748794243314,-430.0,0.00020547,2]
[363635536,1748794243323,-578.72,0.00020547,2]
[363635538,1748794243333,-430.0,0.00020547,2]
[363635540,1748794243343,-711.65,0.00020547,2]
[363635542,1748794243352,-430.0,0.00020547,2]
[363635544,1748794243363,-1226.51,0.00020547,2]
[363635546,1748794243373,-430.0,0.00020547,2]
[363635548,1748794243382,-430.0,0.00020547,2]
[363635550,1748794243392,-430.0,0.00020547,2]
[363635552,1748794243402,-1028.55,0.00020547,2]
[363635554,1748794243412,-430.0,0.00020547,2]
[363635556,1748794243426,-430.0,0.00020547,2]
[363635558,1748794243436,-449.49,0.00020547,2]
[363635560,1748794243446,-752.45,0.00020547,2]
[363635562,1748794243456,-430.0,0.00020547,2]
[363635564,1748794243466,-660.87,0.00020547,2]
[363635566,1748794243476,-1126.12,0.00020547,2]
[363635568,1748794243486,-430.0,0.00020547,2]
[363635570,1748794243495,-430.0,0.00020547,2]
[363635572,1748794243505,-2543.1327274,0.0002059,3]
[363635574,1748794243515,-251.97,0.000206,2]
[363635576,1748794243525,-2578.47,0.000206,2]
[363635578,1748794243535,-2543.1327274,0.00020797,4]
[363635581,1748794243545,-567.09247817,0.00020821,2]
[363635583,1748794243555,-578.72,0.00020821,2]
[363635585,1748794243565,-430.0,0.00020821,2]
[363635587,1748794243575,-711.65,0.00020821,2]
[363635589,1748794243585,-430.0,0.00020821,2]
[363635591,1748794243595,-1226.51,0.00020821,2]
[363635593,1748794243605,-430.0,0.00020821,2]
[363635595,1748794243615,-430.0,0.00020821,2]
[363635597,1748794243624,-430.0,0.00020821,2]
[363635599,1748794243634,-1028.55,0.00020821,2]
[363635601,1748794243643,-317.54261158,0.00020821,2]
[363635603,1748794243653,-430.0,0.00020821,2]
[363635605,1748794243663,-449.49,0.00020821,2]
[363635607,1748794243675,-752.45,0.00020821,2]
[363635609,1748794243685,-430.0,0.00020821,2]
[363635611,1748794243694,-660.87,0.00020821,2]
[363635613,1748794243704,-1126.12,0.00020821,2]
[363635615,1748794243714,-430.0,0.00020821,2]
[363635617,1748794243724,-430.0,0.00020821,2]
[363635619,1748794243733,-188.77363041,0.00020858,2]
[363635621,1748794243742,-500.0,0.00020858,2]
[363635623,1748794243752,-499.08564506,0.00020858,2]
[363635625,1748794243761,-500.0,0.00020858,2]
[363635627,1748794243770,-500.16902464,0.00020923,2]
[363635629,1748794243780,-168.73407253,0.00020923,2]
[363635631,1748794243789,-1533.37483567,0.00020995,2]
[363635633,1748794243798,-3000.0,0.00021,2]
[363635635,1748794243808,-34050.0374763,0.00021,2]
[363635637,1748794243817,-2543.1327274,0.00021003,4]
[363635639,1748794243827,-3000.0,0.0002101,2]
[363635641,1748794243837,-3000.0,0.0002102,2]
[363635643,1748794243847,-3000.0,0.0002103,2]
[363635645,1748794243857,-3000.0,0.0002104,2]
[363635647,1748794243869,-3000.0,0.0002105,2]
[363635649,1748794243878,-3000.0,0.0002106,2]
[363635651,1748794243887,-3000.0,0.0002107,2]
[363635653,1748794243897,-3000.0,0.0002108,2]
[363635655,1748794243910,-3000.0,0.0002109,2]
[363635657,1748794243922,-578.72,0.00021095,2]
[363635659,1748794243932,-430.0,0.00021095,2]
[363635661,1748794243943,-711.65,0.00021095,2]
[363635663,1748794243952,-470.07295285,0.00021095,2]
[363635665,1748794243963,-1226.51,0.00021095,2]
[363635667,1748794243973,-430.0,0.00021095,2]
[363635669,1748794243983,-430.0,0.00021095,2]
[363635671,1748794243992,-430.0,0.00021095,2]
[363635673,1748794244003,-1028.55,0.00021095,2]
[363635675,1748794244013,-430.0,0.00021095,2]
[363635677,1748794244023,-449.49,0.00021095,2]
[363635679,1748794244032,-752.45,0.00021095,2]
[363635681,1748794244041,-430.0,0.00021095,2]
[363635683,1748794244051,-660.87,0.00021095,2]
[363635685,1748794244060,-1126.12,0.00021095,2]
[363635687,1748794244070,-430.0,0.00021095,2]
[363635689,1748794244079,-430.0,0.00021095,2]
[363635691,1748794244089,-3000.0,0.000211,2]
[363635693,1748794244099,-402.76,0.000211,2]
[363635695,1748794244108,-3000.0,0.0002111,2]
[363635708,1748794244228,-3000.0,0.0002112,2]
[363635710,1748794244239,-3000.0,0.0002113,2]
[363635712,1748794244249,-3000.0,0.0002114,2]
[363635714,1748794244258,-649.21402904,0.00021142,2]
[363635716,1748794244267,-500.0,0.00021142,2]
[363635718,1748794244277,-500.0,0.00021142,2]
[363635720,1748794244287,-3000.0,0.0002115,2]
[363635722,1748794244296,-3000.0,0.0002116,2]
[363635724,1748794244306,-3000.0,0.0002117,2]
[363635726,1748794244316,-3000.0,0.0002118,2]
[363635728,1748794244325,-3000.0,0.0002119,2]
[363635730,1748794244335,-3000.0,0.000212,2]
[363635732,1748794244344,-151.0,0.000212,3]
[363635734,1748794244353,-3000.0,0.0002121,2]
[363635736,1748794244365,-2543.1327274,0.0002121,4]
[363635738,1748794244375,-3000.0,0.0002122,2]
[363635740,1748794244385,-3000.0,0.0002123,2]
[363635742,1748794244395,-3000.0,0.0002124,2]
[363635744,1748794244403,-3000.0,0.0002125,2]
[363635746,1748794244412,-3000.0,0.0002126,2]
[363635749,1748794244425,-3000.0,0.0002127,2]
[363635751,1748794244435,-3000.0,0.0002128,2]
[363635753,1748794244444,-3000.0,0.0002129,2]
[363635755,1748794244453,-3000.0,0.000213,2]
[363635757,1748794244462,-3000.0,0.0002131,2]
[363635759,1748794244471,-3000.0,0.0002132,2]
[363635761,1748794244480,-3000.0,0.0002133,2]
[363635763,1748794244490,-3000.0,0.0002134,2]
[363635765,1748794244500,-3000.0,0.0002135,2]
[363635767,1748794244509,-3000.0,0.0002136,2]
[363635769,1748794244519,-578.72,0.00021369,2]
[363635771,1748794244528,-430.0,0.00021369,2]
[363635773,1748794244538,-711.65,0.00021369,2]
[363635775,1748794244547,-1226.51,0.00021369,2]
[363635777,1748794244557,-430.0,0.00021369,2]
[363635778,1748794244566,-387.40811617,0.00021369,2]
[363635780,1748794244576,-430.0,0.00021369,2]
[363635782,1748794244587,-1028.55,0.00021369,2]
[363635784,1748794244596,-430.0,0.00021369,2]
[363635786,1748794244605,-449.49,0.00021369,2]
[363635789,1748794244615,-752.45,0.00021369,2]
[363635791,1748794244625,-430.0,0.00021369,2]
[363635793,1748794244634,-660.87,0.00021369,2]
[363635794,1748794244643,-1126.12,0.00021369,2]
[363635796,1748794244653,-364.61113983,0.00021369,2]
[363635798,1748794244662,-430.0,0.00021369,2]
[363635801,1748794244674,-3000.0,0.0002137,2]
[363635803,1748794244684,-3000.0,0.0002138,2]
[363635805,1748794244694,-3000.0,0.0002139,2]
[363635806,1748794244703,-3000.0,0.000214,2]
[363635809,1748794244713,-859.78747334,0.00021406,2]
[363635811,1748794244722,-3000.0,0.0002141,2]
[363635812,1748794244732,-2543.1327274,0.00021417,5]
[363635814,1748794244741,-3000.0,0.0002142,2]
[363635816,1748794244751,-3000.0,0.0002143,2]
[363635819,1748794244760,-4202.395677,0.0002144,2]
[363635821,1748794244771,-500.0,0.000215,2]
[363635823,1748794244780,-2543.1327274,0.00021624,5]
[363635825,1748794244791,-578.72,0.00021643,2]
[363635826,1748794244800,-308.23447588,0.00021643,2]
[363635829,1748794244810,-711.65,0.00021643,2]
[363635831,1748794244819,-1226.51,0.00021643,2]
[363635832,1748794244828,-430.0,0.00021643,2]
[363635835,1748794244838,-253.85122629,0.00021643,2]
[363635837,1748794244848,-1028.55,0.00021643,2]
[363635839,1748794244857,-430.0,0.00021643,2]
[363635841,1748794244866,-449.49,0.00021643,2]
[363635843,1748794244876,-752.45,0.00021643,2]
[363635844,1748794244885,-430.0,0.00021643,2]
[363635846,1748794244896,-660.87,0.00021643,2]
[363635848,1748794244909,-1126.12,0.00021643,2]
[363635850,1748794244921,-655.21786445,0.0002169,2]
[363635852,1748794244930,-1000.0,0.0002169,2]
[363635854,1748794244940,-2543.1327274,0.00021831,6]
[363635856,1748794244952,-2578.47,0.000219,2]
[363635858,1748794244961,-151.0,0.000219,4]
[363635860,1748794244971,-1052.35581957,0.000219,2]
[363635862,1748794244982,-578.72,0.00021917,2]
[363635865,1748794244992,-711.65,0.00021917,2]
[363635867,1748794245001,-1226.51,0.00021917,2]
[363635869,1748794245011,-186.12,0.00021917,2]
[363635870,1748794245022,-1028.55,0.00021917,2]
[363635872,1748794245039,-430.0,0.00021917,2]
[363635874,1748794245049,-449.49,0.00021917,2]
[363635876,1748794245058,-752.45,0.00021917,2]
[363635878,1748794245069,-430.0,0.00021917,2]
[363635880,1748794245081,-660.87,0.00021917,2]
[363635882,1748794245091,-1126.12,0.00021917,2]
[363635884,1748794245101,-126847.8,0.00022,7]
[363635886,1748794245111,-198.0,0.00022,2]
[363635888,1748794245120,-2543.1327274,0.00022038,6]
[363635890,1748794245130,-1000.0,0.00022048,2]
[363635892,1748794245140,-154.67873888,0.00022145,2]
[363635894,1748794245150,-800.0,0.00022145,2]
[363635896,1748794245159,-800.0,0.00022145,2]
[363635898,1748794245172,-800.0,0.00022145,2]
[363635900,1748794245182,-207.4,0.00022145,2]
[363635902,1748794245191,-800.0,0.00022145,2]
[363635904,1748794245200,-800.0,0.00022145,2]
[363635906,1748794245210,-800.0,0.00022145,2]
[363635908,1748794245220,-800.0,0.00022145,2]
[363635910,1748794245229,-800.0,0.00022145,2]
[363635912,1748794245240,-800.0,0.00022145,2]
[363635914,1748794245250,-800.0,0.00022145,2]
[363635916,1748794245260,-800.0,0.00022145,2]
[363635918,1748794245270,-800.0,0.00022145,2]
[363635920,1748794245280,-5000.0,0.00022145,2]
[363635922,1748794245290,-800.0,0.00022145,2]
[363635924,1748794245299,-701.76279037,0.00022145,2]
[363635926,1748794245309,-578.72,0.00022191,2]
[363635928,1748794245319,-711.65,0.00022191,2]
[363635930,1748794245328,-1226.51,0.00022191,2]
[363635932,1748794245338,-1028.55,0.00022191,2]
[363635934,1748794245347,-430.0,0.00022191,2]
[363635936,1748794245358,-449.49,0.00022191,2]
[363635939,1748794245368,-752.45,0.00022191,2]
[363635941,1748794245378,-203.92,0.00022191,2]
[363635944,1748794245388,-660.87,0.00022191,2]
[363635948,1748794245398,-1126.12,0.00022191,2]
[363635951,1748794245408,-198.0,0.00022192,7]
[363635954,1748794245421,-328.136776,0.00022219,2]
[363635956,1748794245431,-305.5722759,0.00022219,2]
[363635958,1748794245440,-173.4381982,0.00022219,2]
[363635961,1748794245450,-572.3927371,0.00022219,2]
[363635963,1748794245459,-158.4848398,0.00022219,2]
[363635965,1748794245470,-176.4890519,0.00022219,2]
[363635967,1748794245479,-153.0,0.00022219,2]
[363635969,1748794245490,-572.3927371,0.00022219,2]
[363635970,1748794245500,-158.4848398,0.00022219,2]
[363635971,1748794245510,-176.4890519,0.00022219,2]
[363635972,1748794245520,-572.3927371,0.00022219,2]
[363635973,1748794245529,-158.4848398,0.00022219,2]
[363635974,1748794245538,-153.0,0.00022219,2]
[363635975,1748794245548,-572.3927371,0.00022219,2]
[363635976,1748794245557,-1533.37483567,0.00022228,2]
[363635977,1748794245567,-1500.0,0.00022238,2]
[363635978,1748794245576,-2543.1327274,0.00022245,6]
[363635979,1748794245585,-500.0,0.00022259,2]
[363635980,1748794245594,-500.97,0.000223,2]
[363635981,1748794245604,-2543.1327274,0.00022452,7]
[363635982,1748794245614,-578.72,0.00022465,2]
[363635983,1748794245623,-711.65,0.00022465,2]
[363635984,1748794245633,-1226.51,0.00022465,2]
[363635985,1748794245642,-1028.55,0.00022465,2]
[363635986,1748794245651,-482.19,0.00022465,2]
[363635987,1748794245661,-449.49,0.00022465,2]
[363635988,1748794245674,-752.45,0.00022465,2]
[363635990,1748794245684,-660.87,0.00022465,2]
[363635991,1748794245694,-1126.12,0.00022465,2]
[363635992,1748794245704,-402.76,0.000225,7]
[363635993,1748794245714,-151.0,0.000225,7]
[363635995,1748794245723,-151.0,0.000225,6]
[363635997,1748794245733,-28823.94,0.000226,2]
[363635999,1748794245743,-173.899304,0.00022603,2]
[363636001,1748794245753,-2543.1327274,0.00022659,7]
[363636003,1748794245763,-5000.0,0.00022693,2]
[363636005,1748794245773,-578.76494419,0.00022739,2]
[363636007,1748794245783,-711.80577583,0.00022739,2]
[363636009,1748794245793,-1226.51,0.00022739,2]
[363636011,1748794245802,-1028.55,0.00022739,2]
[363636013,1748794245811,-449.49,0.00022739,2]
[363636015,1748794245821,-752.46616505,0.00022739,2]
[363636017,1748794245830,-660.88,0.00022739,2]
[363636018,1748794245839,-1126.12058527,0.00022739,2]
[363636020,1748794245849,-1000.54762423,0.00022786,2]
[363636022,1748794245859,-2543.1327274,0.00022866,8]
[363636024,1748794245869,-364.3782178,0.00022904,2]
[363636026,1748794245878,-364.3782178,0.00022904,2]
[363636028,1748794245888,-364.3782178,0.00022904,2]
[363636030,1748794245897,-364.3782178,0.00022904,2]
[363636033,1748794245909,-9859.40490574,0.00022979,2]
[363636035,1748794245920,-5000.0,0.00022979,2]
[363636037,1748794245929,-5000.0,0.00022979,2]
[363636039,1748794245940,-5000.0,0.00022979,2]
[363636041,1748794245950,-5000.0,0.00022979,2]
[363636043,1748794245959,-1048.40402565,0.00023,14]
[363636044,1748794245970,-160.0,0.00023,3]
[363636046,1748794245979,-160.0,0.00023,3]
[363636048,1748794245988,-1226.51032006,0.00023013,2]
[363636050,1748794245998,-1028.77932414,0.00023013,2]
[363636052,1748794246008,-449.55,0.00023013,2]
[363636054,1748794246017,-198.0,0.00023014,7]
[363636056,1748794246027,-155.3651621,0.00023041,2]
[363636058,1748794246036,-153.0,0.00023041,2]
[363636060,1748794246046,-176.4890519,0.00023041,2]
[363636062,1748794246056,-2543.1327274,0.00023072,8]
[363636064,1748794246066,-151.0,0.000231,8]
[363636066,1748794246075,-41919.22,0.00023186,6]
[363636068,1748794246084,-122938.48,0.00023186,6]
[363636070,1748794246095,-2578.47,0.000232,2]
[363636072,1748794246105,-126847.8,0.000232,7]
[363636074,1748794246115,-151.0,0.000232,8]
[363636076,1748794246124,-766.96,0.00023227,2]
[363636078,1748794246134,-5000.0,0.00023241,2]
[363636080,1748794246144,-2543.1327274,0.00023279,8]
[363636082,1748794246155,-30391.77,0.000233,6]
[363636084,1748794246164,-1563.717187,0.00023324,3]
[363636086,1748794246178,-842.5625,0.000234,3]
[363636088,1748794246187,-423.51412927,0.000234,3]
[363636090,1748794246197,-229.3709046,0.000234,3]
[363636092,1748794246206,-1533.37483567,0.00023461,2]
[363636094,1748794246216,-2543.1327274,0.00023486,9]
[363636096,1748794246226,-215.0738,0.00023514,2]
[363636098,1748794246235,-2109.92,0.00023561,2]
[363636100,1748794246245,-2109.92,0.00023561,2]
[363636102,1748794246254,-2109.92,0.00023561,2]
[363636104,1748794246264,-2109.92,0.00023561,2]
[363636106,1748794246273,-2109.92,0.00023561,2]
[363636108,1748794246283,-2109.92,0.00023561,2]
[363636110,1748794246293,-2109.92,0.00023561,2]
[363636112,1748794246303,-2109.92,0.00023561,2]
[363636114,1748794246312,-2109.92,0.00023561,2]
[363636116,1748794246322,-2109.92,0.00023561,2]
[363636118,1748794246332,-2109.92,0.00023561,2]
[363636120,1748794246342,-2109.92,0.00023561,2]
[363636122,1748794246352,-2109.92,0.00023561,2]
[363636124,1748794246361,-2109.92,0.00023561,2]
[363636126,1748794246371,-2109.92,0.00023561,2]
[363636128,1748794246381,-2109.92,0.00023561,2]
[363636130,1748794246391,-2109.92,0.00023561,2]
[363636132,1748794246401,-2109.92,0.00023561,2]
[363636134,1748794246411,-2109.92,0.00023561,2]
[363636136,1748794246425,-2109.92,0.00023561,2]
[363636138,1748794246434,-2109.92,0.00023561,2]
[363636140,1748794246444,-2109.92,0.00023561,2]
[363636142,1748794246454,-2109.92,0.00023561,2]
[363636144,1748794246464,-2110.02376269,0.00023561,2]
[363636146,1748794246474,-500.0,0.00023585,2]
[363636148,1748794246483,-1297.779594,0.000236,2]
[363636150,1748794246492,-3695.69825899,0.00023628,2]
[363636152,1748794246502,-5000.0,0.00023665,30]
[363636154,1748794246512,-5000.0,0.00023665,30]
[363636156,1748794246521,-5000.0,0.00023665,30]
[363636158,1748794246531,-5000.0,0.00023665,30]
[363636160,1748794246540,-5000.0,0.00023665,30]
[363636162,1748794246550,-5000.0,0.00023665,30]
[363636164,1748794246560,-5000.0,0.00023665,30]
[363636166,1748794246570,-5000.0,0.00023665,30]
[363636168,1748794246580,-5000.0,0.00023665,30]
[363636170,1748794246590,-5000.0,0.00023665,30]
[363636172,1748794246599,-5000.0,0.00023665,30]
[363636174,1748794246609,-5000.0,0.00023665,30]
[363636175,1748794246619,-5000.0,0.00023665,30]
[363636178,1748794246629,-5000.0,0.00023665,30]
[363636179,1748794246639,-5000.0,0.00023665,30]
[363636181,1748794246648,-5000.0,0.00023665,30]
[363636183,1748794246658,-5000.0,0.00023665,30]
[363636185,1748794246672,-5000.0,0.00023665,30]
[363636187,1748794246682,-5000.0,0.00023665,30]
[363636190,1748794246692,-5000.0,0.00023665,30]
[363636191,1748794246702,-5000.0,0.00023665,30]
[363636193,1748794246712,-2303.86,0.00023665,30]
[363636195,1748794246721,-2543.1327274,0.00023693,9]
[363636197,1748794246732,-952.0,0.000237,3]
[363636199,1748794246741,-952.0,0.000237,3]
[363636201,1748794246751,-952.0,0.000237,3]
[363636203,1748794246760,-952.0,0.000237,3]
[363636205,1748794246770,-952.0,0.000237,3]
[363636207,1748794246779,-952.0,0.000237,3]
[363636209,1748794246789,-952.0,0.000237,3]
[363636221,1748794246798,-952.0,0.000237,3]
[363636224,1748794246911,-952.0,0.000237,3]
[363636226,1748794246924,-952.0,0.000237,3]
[363636228,1748794246934,-160.0,0.000237,3]
[363636230,1748794246944,-153.0,0.000237,31]
[363636232,1748794246955,-153.0,0.000237,31]
[363636234,1748794246965,-153.0,0.000237,31]
[363636236,1748794246975,-153.0,0.000237,31]
[363636238,1748794246988,-153.0,0.000237,31]